bitfinex/quotes_SOLUSD_20240809
["timestamp","ask_amount","ask_price","bid_price","bid_amount"]
[1723210950707,46.10145836,154.33,154.18,0.12549]
[1723210950882,20.0,154.32,154.18,1.54756629]
[1723210951073,20.0,154.32,154.24,6.4831]
[1723210951284,6.4806,154.31,154.24,6.4831]
[1723210951604,0.8339756,154.34,154.25,1.29653516]
[1723210951800,0.8339756,154.34,154.23,0.12549]
[1723210951977,0.8339756,154.34,154.3,6.4808]
[1723210952178,0.8339756,154.34,154.31,6.4802]
[1723210952401,0.8339756,154.34,154.29,6.4809]
[1723210952590,0.8339756,154.34,154.25,44.73]
[1723210952789,0.8339756,154.34,154.33,6.60509]
[1723210952982,0.8339756,154.34,154.33,6.73058]
[1723210953184,0.8339756,154.34,154.33,51.98156]
[1723210953899,10.98807225,154.49,154.34,0.12549]
[1723210953900,55.71807225,154.49,154.34,0.12549]
[1723210954103,6.4738,154.47,154.41,6.4762]
[1723210954313,6.4738,154.47,154.34,91.52720102]
[1723210954314,6.4741,154.46,154.39,6.4771]
[1723210954480,6.4736,154.48,154.36,0.12549]
[1723210954685,6.4736,154.48,154.41,6.4762]
[1723210954883,0.8339756,154.49,154.36,1.79702545]
[1723210955085,7.3070756,154.49,154.42,6.4756]
[1723210955307,0.8339756,154.49,154.37,44.73]
[1723210955485,0.8339756,154.49,154.42,6.4754]
[1723210955682,7.3068756,154.49,154.42,6.4754]
[1723210955881,7.3068756,154.49,154.38,0.12549]
[1723210955882,1.12047836,154.48,154.38,0.12549]
[1723210956107,1.12047836,154.48,154.39,6.4769]
[1723210956108,6.4746,154.45,154.39,6.4769]
[1723210956418,0.8339756,154.49,154.37,0.12549]
[1723210956715,0.8339756,154.49,154.41,6.4761]
[1723210956716,6.4733,154.48,154.41,6.4761]
[1723210956880,26.4738,154.47,154.41,6.4761]
[1723210957087,1.12047836,154.46,154.36,6.72908]
[1723210957286,6.4756,154.43,154.37,6.4779]
[1723210957591,44.73,154.47,154.31,52.44686112]
[1723210957891,44.73,154.47,154.32,1.29519947]
[1723210957892,20.0,154.46,154.32,1.29519947]
[1723210958095,1.12047836,154.45,154.31,44.73]
[1723210958291,1.12047836,154.45,154.3,15.6487]
[1723210958483,1.12047836,154.45,154.25,50.8852]
[1723210958484,44.73,154.41,154.25,50.8852]
[1723210958684,37.50467836,154.4,154.24,1.29612339]
[1723210958994,1.37145836,154.39,154.22,46.02600785]
[1723210959204,44.98098,154.38,154.22,46.02600785]
[1723210959388,6.4796,154.33,154.27,6.4821]
[1723210959594,1.12047836,154.37,154.27,6.4821]
[1723210959899,0.25098,154.36,154.22,44.73]
[1723210960102,44.85549,154.35,154.19,46.02637233]
[1723210960417,20.12549,154.34,154.28,6.4816]
[1723210960728,20.0,154.34,154.22,44.73]
[1723210960916,20.0,154.34,154.23,6.4836]
[1723210960917,6.4813,154.29,154.23,6.4836]
[1723210961107,44.73,154.26,154.07,61.3591]
[1723210961290,6.4838,154.23,154.08,1.29721074]
[1723210961490,45.85047836,154.23,154.14,6.4873]
[1723210961706,20.0,154.22,154.08,1.2974215]
[1723210962003,22.47738,154.28,154.13,44.73]
[1723210962319,21.24596836,154.27,154.13,44.73]
[1723210962490,1.12047836,154.26,154.1,46.02699003]
[1723210962812,6.4842,154.22,154.16,6.4865]
[1723210963018,6.4838,154.23,154.16,6.4865]
[1723210963189,44.73,154.24,154.14,6.4874]
[1723210963386,20.0,154.23,154.14,6.4874]
[1723210963590,26.4842,154.23,154.15,6.4871]
[1723210963800,20.0,154.23,154.17,6.4862]
[1723210964014,20.0,154.23,154.1,44.73]
[1723210964316,20.0,154.26,154.11,1.29708658]
[1723210964516,21.12047836,154.26,154.17,6.4863]
[1723210964814,44.73,154.21,154.12,6.4882]
[1723210965020,44.73,154.21,154.1,6.4888]
[1723210965021,6.4864,154.17,154.1,6.4888]
[1723210965204,44.73,154.21,154.12,6.4884]
[1723210965205,6.4855,154.19,154.12,6.4884]
[1723210965400,44.73,154.21,154.05,6.516]
[1723210965401,6.4864,154.17,154.05,6.516]
[1723210965593,7.60717836,154.16,154.05,6.516]
[1723210965794,44.73,154.18,154.12,6.4881]
[1723210965990,44.73,154.18,154.02,6.516]
[1723210966192,6.4865,154.17,154.02,7.81375247]
[1723210966493,22.6128,154.23,154.11,6.4887]
[1723210966691,22.6128,154.23,154.06,6.516]
[1723210966692,6.4865,154.17,154.06,6.516]
[1723210966893,20.0,154.22,154.07,1.29768822]
[1723210967126,20.0,154.22,154.11,6.4887]
[1723210967127,6.4863,154.18,154.11,6.4887]
[1723210967315,1.12047836,154.2,154.06,6.516]
[1723210967516,21.12047836,154.22,154.07,46.54865098]
[1723210967698,20.0,154.22,154.07,46.54865098]
[1723210967895,57.6171,154.23,154.17,6.4862]
[1723210968259,22.2267,154.28,154.12,44.73]
[1723210968396,22.2016,154.38,154.18,44.73]
[1723210968599,22.2016,154.38,154.21,6.4842]
[1723210968600,6.4818,154.28,154.21,6.4842]
[1723210968802,44.73,154.31,154.22,6.4842]
[1723210968995,44.73,154.31,154.25,6.4829]
[1723210968996,51.2108,154.31,154.25,6.4829]
[1723210969209,44.73,154.34,154.2,0.12549]
[1723210969397,1.12047836,154.33,154.2,0.12549]
[1723210969611,44.73,154.31,154.19,0.12549]
[1723210969825,6.4831,154.25,154.14,0.12549]
[1723210970119,6.4835,154.24,154.18,6.4858]
[1723210970425,15.7057,154.27,154.15,1.29707629]
[1723210970606,1.12047836,154.26,154.14,45.0]
[1723210970923,51.128,154.25,154.15,1.29716729]
[1723210971096,51.128,154.25,154.09,64.73]
[1723210971097,20.0,154.24,154.1,21.29700063]
[1723210971299,20.0,154.24,154.09,46.02718466]
[1723210971805,26.4838,154.24,154.17,6.4861]
[1723210972015,26.4838,154.24,154.09,46.02718466]
[1723210972016,20.0,154.24,154.09,46.02718466]
[1723210972193,20.0,154.24,154.19,6.4854]
[1723210972599,20.0,154.24,154.11,1.29702508]
[1723210972800,26.4834,154.24,154.17,6.4862]
[1723210973106,20.0,154.24,154.12,0.25098]
[1723210973407,20.0,154.24,154.18,6.4858]
[1723210973623,20.0,154.24,154.1,21.29711455]
[1723210973800,20.0,154.24,154.1,1.29711637]
[1723210974008,20.0,154.24,154.19,6.4854]
[1723210974201,6.4843,154.22,154.07,16.5197]
[1723210974527,6.4838,154.23,154.17,6.4862]
[1723210974727,20.0,154.24,154.2,6.4849]
[1723210974944,6.398,154.25,154.13,0.12549]
[1723210975234,6.398,154.25,154.13,0.25098]
[1723210975407,6.398,154.25,154.15,0.12549]
[1723210975603,6.398,154.25,154.16,0.12549]
[1723210975934,6.398,154.25,154.16,0.50196]
[1723210976102,12.881,154.25,154.16,0.37647]
[1723210976304,6.398,154.25,154.2,6.485]
[1723210976529,6.398,154.25,154.16,0.37647]
[1723210976530,6.398,154.25,154.16,1.67343352]
[1723210976700,12.8813,154.25,154.16,0.25098]
[1723210977034,6.4838,154.23,154.16,0.12549]
[1723210977334,6.398,154.25,154.1,20.0]
[1723210977335,6.4843,154.22,154.1,20.0]
[1723210977511,6.4846,154.21,154.15,6.4868]
[1723210977707,6.4859,154.18,154.12,6.4884]
[1723210977909,1.12047836,154.17,154.12,6.4884]
[1723210978312,1.12047836,154.17,154.13,6.488]
[1723210978512,45.25098,154.24,154.2,6.485]
[1723210978717,6.398,154.25,154.14,1.29753744]
[1723210978934,6.398,154.25,154.12,44.73]
[1723210978935,6.398,154.25,154.15,1.29711457]
[1723210979435,6.398,154.25,154.12,46.02691945]
[1723210979608,6.398,154.25,154.13,0.12549]
[1723210979809,6.398,154.25,154.13,1.79884806]
[1723210980009,6.398,154.25,154.13,0.50196]
[1723210980210,6.4835,154.24,154.13,0.50196]
[1723210980447,6.4851,154.2,154.14,6.4872]
[1723210980715,6.4859,154.18,154.12,6.4883]
[1723210980929,1.12047836,154.21,154.07,6.516]
[1723210981131,1.12047836,154.21,154.01,35.15]
[1723210981132,44.73,154.19,154.03,51.246]
[1723210981323,6.4869,154.16,154.1,6.4889]
[1723210981628,6.4869,154.16,154.0,14.22012615]
[1723210981629,6.4886,154.12,154.06,13.0068]
[1723210981838,20.0,154.15,154.06,6.516]
[1723210982616,20.0,154.15,154.09,6.4895]
[1723210982803,7.60807836,154.14,154.07,6.4902]
[1723210983010,20.0,154.15,154.08,1.29793373]
[1723210983214,16.1111,154.16,154.11,6.4888]
[1723210983415,16.1111,154.16,154.04,6.516]
[1723210983717,44.73,154.22,154.16,6.4863]
[1723210984040,44.73,154.22,154.07,1.29740103]
[1723210984346,15.0406,154.24,154.09,0.12549]
[1723210984506,15.0406,154.24,154.09,46.27818288]
[1723210984711,15.0406,154.24,154.11,0.12549]
[1723210985052,15.0406,154.24,154.1,45.12549]
[1723210985216,15.0406,154.24,154.06,6.516]
[1723210985217,44.73,154.19,154.06,6.516]
[1723210985539,6.4876,154.14,154.06,6.516]
[1723210985743,1.12047836,154.18,154.06,6.516]
[1723210985744,44.73,154.19,154.07,1.29788231]
[1723210985910,51.2142,154.22,154.16,6.4866]
[1723210986104,20.0,154.23,154.17,6.4861]
[1723210986434,21.5243,154.24,154.09,64.73]
[1723210986435,15.0406,154.24,154.09,64.73]
[1723210986629,15.0406,154.24,154.12,64.73]
[1723210986843,6.398,154.25,154.24,6.4834]
[1723210987049,6.2755,154.31,154.17,0.12549]
[1723210987250,6.2755,154.31,154.27,6.4819]
[1723210987251,13.05346906,154.31,154.27,6.4819]
[1723210987457,6.2755,154.31,154.25,6.4826]
[1723210987754,6.2755,154.31,154.25,6.4829]
[1723210987956,6.2755,154.31,154.24,6.4833]
[1723210988254,6.4833,154.25,154.18,6.61099]
[1723210988438,1.12047836,154.3,154.19,6.4851]
[1723210988645,1.12047836,154.3,154.17,0.25098]
[1723210988646,44.73,154.28,154.16,0.12549]
[1723210988838,6.4825,154.26,154.19,6.4854]
[1723210989156,20.0,154.27,154.18,6.4859]
[1723210989157,6.4834,154.24,154.18,6.4859]
[1723210989450,21.12047836,154.27,154.17,6.4863]
[1723210989656,6.4837,154.24,154.11,1.2972477]
[1723210989836,6.4839,154.23,154.17,6.4863]
[1723210990153,1.24596836,154.24,154.13,6.4876]
[1723210990354,20.0,154.22,154.14,6.4873]
[1723210990533,20.0,154.22,154.07,6.516]
[1723210990534,20.0,154.22,154.18,6.4859]
[1723210990723,20.0,154.22,154.09,44.73]
[1723210990923,6.4854,154.2,154.1,1.29736386]
[1723210991123,20.0,154.22,154.1,1.29736386]
[1723210991365,6.4851,154.2,154.1,1.29736386]
[1723210991532,6.485,154.2,154.13,6.4876]
[1723210991728,6.485,154.2,154.07,6.516]
[1723210991729,65.85047836,154.22,154.07,6.516]
[1723210991933,6.4863,154.17,154.08,45.0]
[1723210992132,1.12047836,154.16,154.1,6.4889]
[1723210992456,6.1037,154.2,154.05,1.29760679]
[1723210992654,6.1037,154.2,154.05,1.29762504]
[1723210992655,20.25098,154.19,154.05,1.29762504]
[1723210992830,20.0,154.19,154.06,6.516]
[1723210993028,20.0,154.19,154.16,6.4866]
[1723210993234,6.1037,154.2,154.16,6.4866]
[1723210993455,6.1037,154.2,154.15,6.4871]
[1723210993640,6.1037,154.2,154.13,6.4879]
[1723210993845,12.5888,154.2,154.14,6.4874]
[1723210994153,6.1037,154.2,154.14,6.4874]
[1723210994657,6.1037,154.2,154.09,0.12549]
[1723210994955,6.1037,154.2,154.1,0.12549]
[1723210995144,6.1037,154.2,154.16,6.4867]
[1723210995323,6.1037,154.2,154.15,6.4871]
[1723210995530,12.5889,154.2,154.11,1.29736269]
[1723210995851,6.4867,154.17,154.11,6.4888]
[1723210996046,44.73,154.17,154.02,46.02781234]
[1723210996221,20.0,154.16,154.1,6.489]
[1723210996427,20.0,154.16,154.11,6.4887]
[1723210996644,57.3188,154.2,154.07,1.29767525]
[1723210996842,57.3188,154.2,154.03,7.81367525]
[1723210996843,20.0,154.19,154.03,7.81367525]
[1723210997153,6.4877,154.14,154.08,6.4897]
[1723210997453,6.4877,154.14,154.04,6.4916]
[1723210997454,1.12047836,154.13,154.04,6.4916]
[1723210997753,1.12047836,154.13,154.05,7.81415525]
[1723210997754,20.0,154.13,154.05,7.81415525]
[1723210997932,15.6782,154.15,154.1,6.4889]
[1723210998282,15.6782,154.15,154.09,6.4892]
[1723210998456,15.6782,154.15,154.06,1.29785859]
[1723210998457,15.6782,154.15,154.06,1.29791368]
[1723210998626,15.6782,154.15,154.11,6.4885]
[1723210998826,15.6782,154.15,154.1,6.489]
[1723210999329,15.6782,154.15,154.04,6.64149]
[1723210999330,6.78415614,154.18,154.04,7.93936177]
[1723210999538,20.0,154.17,154.06,6.516]
[1723210999826,66.6226,154.2,154.06,6.516]
[1723210999827,66.6226,154.2,154.08,0.12549]
[1723211000063,21.8926,154.2,154.08,46.15296638]
[1723211000362,21.8926,154.2,154.1,0.12549]
[1723211000660,1.12047836,154.19,154.1,0.12549]
[1723211000829,67.74307836,154.2,154.07,0.12549]
[1723211001033,67.74307836,154.2,154.06,6.516]
[1723211001034,44.73,154.17,154.06,6.516]
[1723211001339,44.73,154.17,154.07,1.29806789]
[1723211001528,20.0,154.16,154.11,6.4888]
[1723211001728,26.4867,154.16,154.09,6.4893]
[1723211002024,26.4869,154.16,154.1,6.4892]
[1723211002248,6.4875,154.15,154.03,6.516]
[1723211002430,20.0,154.16,154.05,6.516]
[1723211002636,20.0,154.16,154.08,6.4901]
[1723211003147,6.4872,154.15,154.09,6.4897]
[1723211003353,26.4867,154.16,154.1,6.4892]
[1723211003849,20.0,154.16,154.11,6.4887]
[1723211004046,320.1405,154.23,154.12,6.4881]
[1723211004369,320.1405,154.23,154.06,7.93922033]
[1723211004370,6.4877,154.14,154.08,6.4898]
[1723211004544,6.4877,154.14,154.09,6.4897]
[1723211004739,45.85047836,154.17,154.06,6.516]
[1723211004942,44.73,154.17,154.06,6.516]
[1723211005144,44.73,154.17,154.0,6.516]
[1723211005145,1.12047836,154.16,154.0,6.516]
[1723211005338,6.4898,154.09,154.06,6.516]
[1723211005534,44.73,154.14,154.06,6.516]
[1723211005802,6.4889,154.11,154.06,6.516]
[1723211006239,26.61389,154.13,154.06,6.516]
[1723211006444,6.4884,154.12,154.06,6.516]
[1723211006958,20.0,154.13,154.08,6.4897]
[1723211007156,51.2167,154.17,154.11,6.4888]
[1723211007367,51.2167,154.17,154.06,6.516]
[1723211007368,89.62011316,154.2,154.06,6.516]
[1723211007656,6.4876,154.14,154.09,6.4896]
[1723211007852,6.4876,154.14,154.06,6.516]
[1723211008354,6.4876,154.14,154.05,0.25098]
[1723211008355,44.73,154.17,154.05,0.12549]
[1723211008531,65.50196,154.16,154.06,6.516]
[1723211008738,20.0,154.16,154.11,6.4885]
[1723211009039,20.0,154.16,154.07,0.12549]
[1723211009243,20.0,154.16,154.06,6.516]
[1723211009429,6.4872,154.15,154.1,6.4892]
[1723211009637,20.0,154.14,154.1,6.4892]
[1723211009837,20.0,154.14,154.12,6.4883]
[1723211010131,28.67661316,154.2,154.08,0.12549]
[1723211010331,21.8926,154.2,154.08,1.79944484]
[1723211010758,21.8926,154.2,154.08,0.50196]
[1723211010957,23.01307836,154.2,154.08,0.37647]
[1723211011364,6.4868,154.16,154.1,6.4891]
[1723211011566,6.4855,154.19,154.13,6.4876]
[1723211011766,6.4855,154.19,154.08,0.37647]
[1723211011965,6.4862,154.18,154.08,0.37647]
[1723211012171,21.8926,154.2,154.13,6.4877]
[1723211012355,21.8926,154.2,154.1,0.12549]
[1723211012545,21.8926,154.2,154.16,6.4866]
[1723211012870,1.12047836,154.19,154.1,0.37647]
[1723211013170,28.3777,154.2,154.1,0.25098]
[1723211013344,21.8926,154.2,154.15,6.4871]
[1723211013865,6.1037,154.2,154.16,6.4867]
[1723211014039,59.8114,154.25,154.12,0.12549]
[1723211014040,66.1692,154.25,154.12,0.12549]
[1723211014239,44.73,154.22,154.1,0.12549]
[1723211014445,6.4864,154.17,154.11,6.4887]
[1723211014653,6.4858,154.19,154.07,45.0]
[1723211014949,6.4864,154.17,154.1,6.4892]
[1723211015142,6.4867,154.16,154.1,6.4892]
[1723211015841,0.12549,154.18,154.08,6.4897]
[1723211016043,0.12549,154.18,154.06,6.516]
[1723211016044,65.12549,154.18,154.12,6.4883]
[1723211016243,20.0,154.18,154.14,6.4875]
[1723211016475,20.0,154.18,154.13,6.488]
[1723211016638,26.4851,154.2,154.14,6.4874]
[1723211016843,26.4851,154.2,154.1,6.4892]
[1723211016844,6.4866,154.17,154.1,6.4892]
[1723211017056,0.12549,154.18,154.01,51.246]
[1723211017057,51.86227,154.19,154.12,6.488]
[1723211017263,51.86227,154.19,154.06,1.29764489]
[1723211017264,20.0,154.18,154.06,1.29764489]
[1723211017468,20.0,154.18,154.14,6.4874]
[1723211017772,20.0,154.19,154.14,6.4874]
[1723211017969,6.4859,154.18,154.12,6.488]
[1723211018146,20.0,154.17,154.08,0.12549]
[1723211018347,20.0,154.17,154.1,6.4892]
[1723211018556,26.4863,154.17,154.1,6.4892]
[1723211019276,20.0,154.17,154.13,6.4879]
[1723211019476,6.4854,154.2,154.14,6.4875]
[1723211019647,20.0,154.19,154.15,6.4871]
[1723211019843,42.8841,154.23,154.13,1.29739081]
[1723211020169,36.4,154.23,154.14,0.12549]
[1723211020371,6.4847,154.21,154.14,6.4872]
[1723211020572,6.4851,154.2,154.13,6.73888]
[1723211020872,6.4856,154.19,154.13,6.4879]
[1723211021071,6.4855,154.19,154.13,6.4879]
[1723211021248,6.4855,154.19,154.11,0.12549]
[1723211021249,36.4,154.21,154.11,1.29753666]
[1723211021576,42.8838,154.23,154.17,6.4863]
[1723211021872,20.0,154.22,154.12,1.42266791]
[1723211022063,20.0,154.22,154.18,6.4858]
[1723211022257,20.0,154.22,154.17,6.4863]
[1723211022461,20.0,154.22,154.18,6.4859]
[1723211022648,20.0,154.22,154.13,37.82271751]
[1723211022649,20.0,154.22,154.19,6.4853]
[1723211022850,26.4834,154.24,154.18,6.4858]
[1723211023150,26.4834,154.24,154.14,0.12549]
[1723211023151,6.4839,154.23,154.14,0.12549]
[1723211023350,21.12047836,154.22,154.14,0.25098]
[1723211023541,26.4842,154.22,154.16,6.4867]
[1723211024891,20.0,154.22,154.17,1.29719377]
[1723211025071,26.4834,154.24,154.17,6.4859]
[1723211025380,6.4848,154.21,154.14,0.25098]
[1723211025580,36.4,154.21,154.12,0.12549]
[1723211026080,36.4,154.19,154.1,0.12549]
[1723211026294,36.4,154.21,154.12,0.12549]
[1723211026881,6.4867,154.17,154.11,6.4888]
[1723211027059,36.4,154.19,154.1,1.29762409]
[1723211027259,36.4,154.21,154.11,37.6973891]
[1723211027481,36.4,154.23,154.13,36.4]
[1723211027673,36.4,154.23,154.14,1.29717765]
[1723211027874,36.4,154.23,154.13,36.4]
[1723211028087,36.4,154.23,154.17,6.4861]
[1723211028668,20.0,154.22,154.17,6.4861]
[1723211029959,20.0,154.22,154.18,1.29717819]
[1723211030180,20.0,154.24,154.18,6.4855]
[1723211030384,26.4836,154.24,154.18,6.4855]
[1723211030764,20.0,154.24,154.19,6.4854]
[1723211030964,20.0,154.24,154.2,6.485]
[1723211031160,259.2,154.29,154.21,1.29688639]
[1723211031161,36.4,154.29,154.21,1.29688639]
[1723211031381,22.1146,154.3,154.25,6.4826]
[1723211031689,42.8805,154.31,154.25,6.4826]
[1723211031890,36.4,154.29,154.2,45.12549]
[1723211032087,6.483,154.25,154.2,0.12549]
[1723211032385,6.4841,154.23,154.15,36.4]
[1723211032596,6.4841,154.23,154.15,6.4867]
[1723211032597,6.4848,154.21,154.15,6.4867]
[1723211032885,36.4,154.21,154.11,44.13813543]
[1723211033093,36.4,154.23,154.11,44.13801841]
[1723211033464,36.4,154.21,154.11,42.8409]
[1723211033661,36.4,154.21,154.17,6.4862]
[1723211033881,42.8838,154.23,154.18,6.4859]
[1723211034261,36.4,154.23,154.14,1.29721741]
[1723211034493,36.4,154.23,154.18,6.4855]
[1723211034692,6.1321,154.24,154.15,0.12549]
[1723211034885,51.6355,154.25,154.15,0.12549]
[1723211034886,36.4,154.25,154.15,38.19890833]
[1723211035069,6.3948,154.29,154.17,0.12549]
[1723211035070,36.4,154.27,154.17,0.12549]
[1723211035273,36.4,154.27,154.17,0.50196]
[1723211035274,20.0,154.26,154.17,0.50196]
[1723211036064,20.0,154.26,154.21,6.4842]
[1723211036266,20.0,154.26,154.22,6.4842]
[1723211036690,26.4829,154.26,154.2,6.4847]
[1723211036877,26.4829,154.26,154.18,6.4855]
[1723211036878,6.4834,154.24,154.18,6.4855]
[1723211037386,20.0,154.26,154.24,6.4832]
[1723211037591,6.4817,154.28,154.22,6.4838]
[1723211037891,42.8805,154.31,154.25,6.4826]
[1723211038074,17.00383959,154.34,154.27,6.4821]
[1723211038075,36.4,154.33,154.27,6.4821]
[1723211038394,12.8305,154.34,154.28,1.29637819]
[1723211038567,6.3513,154.34,154.26,0.12549]
[1723211038768,6.3513,154.34,154.26,46.67266957]
[1723211038971,15.4884,154.35,154.26,46.67266957]
[1723211039384,36.4,154.34,154.26,46.67266957]
[1723211039609,36.4,154.32,154.21,42.638]
[1723211039929,6.4817,154.28,154.2,15.9807]
[1723211040107,36.4,154.28,154.19,36.4]
[1723211040411,6.4816,154.29,154.23,6.4834]
[1723211040700,6.483,154.25,154.19,6.4854]
[1723211040908,36.4,154.28,154.17,36.4]
[1723211041080,20.0,154.27,154.22,6.4842]
[1723211041481,26.4821,154.27,154.21,6.4845]
[1723211041690,36.4,154.28,154.24,6.483]
[1723211041900,36.4,154.32,154.25,1.29649221]
[1723211042114,36.4,154.32,154.17,8.15372615]
[1723211042115,36.4,154.34,154.24,0.12549]
[1723211042314,36.4,154.36,154.26,0.12549]
[1723211042485,6.4798,154.33,154.26,45.25098]
[1723211042685,36.4,154.36,154.27,0.12549]
[1723211042882,36.4,154.38,154.31,6.4803]
[1723211043112,6.4785,154.36,154.27,37.82159111]
[1723211043417,36.4,154.36,154.3,6.4808]
[1723211043588,36.4,154.38,154.31,1.29600551]
[1723211043787,36.4,154.4,154.3,0.12549]
[1723211044099,36.4,154.4,154.3,1.42124956]
[1723211044305,36.4,154.4,154.32,0.12549]
[1723211044506,42.8767,154.4,154.34,6.479]
[1723211044813,36.4,154.42,154.34,6.479]
[1723211044987,6.4766,154.4,154.33,6.4796]
[1723211045186,6.4772,154.39,154.33,6.4796]
[1723211045406,6.4767,154.4,154.33,6.4796]
[1723211045808,36.4,154.4,154.32,0.12549]
[1723211045999,36.4,154.4,154.31,6.60549]
[1723211046000,6.4781,154.37,154.31,0.25098]
[1723211046321,6.4781,154.37,154.29,36.4]
[1723211046322,36.4,154.36,154.29,6.4812]
[1723211046484,6.4789,154.35,154.29,6.4812]
[1723211046686,17.31467836,154.38,154.25,15.174]
[1723211047008,6.4808,154.31,154.24,6.483]
[1723211047214,36.4,154.32,154.23,36.4]
[1723211047383,36.4,154.34,154.23,36.4]
[1723211047804,20.0,154.33,154.23,36.4]
[1723211048018,26.4796,154.33,154.27,6.4819]
[1723211048201,36.4,154.32,154.22,6.41]
[1723211048408,6.4809,154.3,154.22,6.41]
[1723211048710,36.4,154.32,154.27,6.4818]
[1723211049010,20.0,154.33,154.23,36.4]
[1723211049221,6.4813,154.29,154.23,6.4835]
[1723211049513,1.12047836,154.29,154.23,6.4835]
[1723211049716,36.4,154.32,154.21,36.4]
[1723211049915,20.0,154.31,154.21,36.4]
[1723211050210,20.0,154.31,154.19,36.4]
[1723211050510,56.4,154.31,154.19,36.4]
[1723211050838,6.4826,154.26,154.2,6.4847]
[1723211051022,6.483,154.25,154.19,6.4854]
[1723211051317,36.4,154.29,154.24,6.4833]
[1723211051516,20.0,154.28,154.19,36.4]
[1723211051696,20.0,154.28,154.22,6.4839]
[1723211052016,20.0,154.28,154.13,8.15372615]
[1723211052017,20.0,154.28,154.14,1.29666298]
[1723211052311,20.0,154.28,154.23,6.4837]
[1723211052511,20.0,154.28,154.22,6.4841]
[1723211053109,20.0,154.28,154.23,6.4838]
[1723211053309,20.0,154.28,154.24,6.4832]
[1723211053615,20.0,154.28,154.2,0.12549]
[1723211053919,16.2011,154.32,154.14,20.0]
[1723211054215,6.4817,154.28,154.22,6.4842]
[1723211054523,6.4834,154.24,154.18,6.4855]
[1723211054731,42.8829,154.26,154.15,36.4]
[1723211055021,36.4,154.26,154.21,6.4844]
[1723211055205,20.0,154.27,154.22,1.29679436]
[1723211055405,36.4,154.28,154.14,8.15372615]
[1723211055406,36.4,154.28,154.19,36.4]
[1723211055628,36.4,154.28,154.2,1.29655894]
[1723211055801,36.4,154.28,154.21,0.37647]
[1723211056002,36.4,154.28,154.24,6.4833]
[1723211056203,36.4,154.3,154.27,6.4821]
[1723211056428,36.4,154.3,154.23,0.12549]
[1723211056740,42.8808,154.3,154.24,6.4832]
[1723211056927,36.4,154.28,154.17,36.4]
[1723211057226,36.4,154.26,154.13,1.29679989]
[1723211057410,36.4,154.26,154.15,36.4]
[1723211057616,36.4,154.28,154.17,36.4]
[1723211058010,20.0,154.27,154.22,6.4842]
[1723211058211,26.4823,154.27,154.2,6.4846]
[1723211058516,36.4,154.26,154.21,6.4845]
[1723211059028,36.4,154.3,154.22,1.29679282]
[1723211059208,36.4,154.3,154.21,0.12549]
[1723211059528,6.4826,154.26,154.2,6.4847]
[1723211059735,42.8826,154.26,154.19,6.61059]
[1723211059903,36.4,154.26,154.19,0.12549]
[1723211060103,36.4,154.26,154.18,6.4858]
[1723211060104,6.4834,154.24,154.18,6.4855]
[1723211060512,6.4834,154.24,154.15,36.4]